[Event "FIDE World Cup O10-B 2024"]
[Site "Batumi"]
[Date "2024.06.27"]
[Round "5.8"]
[White "Muhammad Shayan Noushad Ibrahi"]
[Black "Kazimzade, Mahammad"]
[Result "1-0"]
[ECO "C44"]
[WhiteElo "1785"]
[BlackElo "1594"]
[Annotator "NA RC"]
[PlyCount "99"]
[EventDate "2024.06.23"]
[EventType "swiss"]
[EventCountry "GEO"]
[SourceTitle "playchess.com"]
[Source "ChessBase"]
[SourceQuality "1"]
[TimeControl "5400+30"]

1. e4 {[%emt 0:01:16]} e5 {[%emt 0:00:09]} 2. Nf3 {[%emt 0:01:32]} Nc6 {[%emt 0:00:19]} 3. c3 {[%emt 0:01:26]} d5 {[%emt 0:00:49]} 4. Qa4 {[%emt 0:01:34]} Bd7 {[%emt 0:02:20]} 5. exd5 {[%emt 0:03:30]} Nd4 {[%emt 0:00:20]} 6. Qd1 {[%emt 0:01:33]} Nxf3+ {[%emt 0:00:09]} 7. Qxf3 {[%emt 0:01:30]} Nf6 {[%emt 0:00:36]} 8. Bc4 {[%emt 0:02:29]} Bd6 {[%emt 0:03:50]} 9. d3 {[%emt 0:02:37]} O-O {[%emt 0:02:45]} 10. Bg5 {[%emt 0:02:25]} Be7 {[%emt 0:01:07]} 11. Bxf6 {[%emt 0:01:26]} Bxf6 {[%emt 0:00:22]} 12. Nd2 {[%emt 0:02:41]} Bg5 {[%emt 0:02:02]} 13. Ne4 {[%emt 0:03:21]} Bh6 {[%emt 0:00:50]} 14. O-O {[%emt 0:04:28]} Kh8 {[%emt 0:00:53]} 15. Nc5 {[%emt 0:03:35]} Bc8 {[%emt 0:03:40]} 16. Rfe1 {[%emt 0:04:28]} Qd6 {[%emt 0:01:44]} 17. Ne4 {[%emt 0:03:17]} Qb6 {[%emt 0:00:26]} 18. Rab1 {[%emt 0:05:39]} Bd7 {[%emt 0:01:27]} 19. b4 {[%emt 0:04:39]} Rae8 {[%emt 0:02:22]} 20. Qh5 {[%emt 0:03:06]} Bb5 {[%emt 0:01:58]} 21. Bxb5 {[%emt 0:03:18]} Qxb5 {[%emt 0:00:03]} 22. c4 {[%emt 0:00:16]} Qa4 {[%emt 0:01:25]} 23. Nc5 {[%emt 0:02:38]} Qxa2 {[%emt 0:01:42]} 24. Nd7 {[%emt 0:00:13]} f5 {[%emt 0:00:23]} 25. Nxf8 {[%emt 0:00:15]} Rxf8 {[%emt 0:00:04]} 26. Qe2 {[%emt 0:00:39]} Qa4 {[%emt 0:00:52]} 27. Qxe5 {[%emt 0:00:18]} Bd2 {[%emt 0:00:40]} 28. Red1 {[%emt 0:00:13]} Bxb4 {[%emt 0:01:20]} 29. Qxc7 {[%emt 0:00:10]} b6 {[%emt 0:00:28]} 30. d6 {[%emt 0:00:21]} Qa2 {[%emt 0:00:49]} 31. Rxb4 {[%emt 0:00:18]} Qc2 {[%emt 0:00:10]} 32. Rbb1 {[%emt 0:00:09]} Qc3 {[%emt 0:00:40]} 33. d4 {[%emt 0:00:22]} Qa3 {[%emt 0:00:06]} 34. c5 {[%emt 0:01:08]} Qa2 {[%emt 0:00:23]} 35. d5 {[%emt 0:01:10]} Qe2 {[%emt 0:00:19]} 36. d7 {[%emt 0:00:22]} Qe7 {[%emt 0:00:06]} 37. d6 {[%emt 0:00:15]} Qf6 {[%emt 0:00:15]} 38. c6 {[%emt 0:00:09]} a5 {[%emt 0:00:09]} 39. Qxb6 {[%emt 0:00:15]} a4 {[%emt 0:00:08]} 40. c7 {[%emt 0:00:11]} a3 {[%emt 0:00:05]} 41. c8=Q {[%emt 0:00:14]} h6 {[%emt 0:00:09]} 42. d8=Q {[%emt 0:00:30]} Rxd8 {[%emt 0:00:19]} 43. Qcxd8+ {[%emt 0:00:08]} Kh7 {[%emt 0:00:05]} 44. Qxf6 {[%emt 0:00:23]} gxf6 {[%emt 0:00:07]} 45. d7 {[%emt 0:00:12]} a2 {[%emt 0:00:12]} 46. Ra1 {[%emt 0:00:21]} Kg6 {[%emt 0:00:10]} 47. d8=Q {[%emt 0:00:11]} f4 {[%emt 0:00:08]} 48. Qdxf6+ {[%emt 0:00:10]} Kh5 {[%emt 0:00:12]} 49. Qc5+ {[%emt 0:00:13]} Kg4 {[%emt 0:00:10]} 50. f3# {[%emt 0:43:56]} 1-0

[Event "FIDE World Cup O10-B 2024"]
[Site "Batumi"]
[Date "2024.06.27"]
[Round "5.9"]
[White "Akramov, Khusan"]
[Black "Lazarev, Egor"]
[Result "0-1"]
[ECO "A21"]
[WhiteElo "1477"]
[BlackElo "1683"]
[Annotator "NA RC"]
[PlyCount "86"]
[EventDate "2024.06.23"]
[EventType "swiss"]
[EventCountry "GEO"]
[SourceTitle "playchess.com"]
[Source "ChessBase"]
[SourceQuality "1"]
[TimeControl "5400+30"]

1. c4 {[%emt 0:00:03]} f5 {[%emt 0:00:10]} 2. g3 {[%emt 0:00:10]} Nf6 {[%emt 0:00:06]} 3. Bg2 {[%emt 0:00:17]} g6 {[%emt 0:00:07]} 4. Nc3 {[%emt 0:00:04]} Bg7 {[%emt 0:00:05]} 5. d3 {[%emt 0:00:23]} O-O {[%emt 0:00:20]} 6. Nf3 {[%emt 0:00:16]} d6 {[%emt 0:00:06]} 7. O-O {[%emt 1:32:47]} e5 {[%emt 0:00:17]} 8. Bg5 {[%emt 0:00:30]} h6 {[%emt 0:04:09]} 9. Bd2 {[%emt 0:00:00]} g5 {[%emt 1:29:40]} 10. Rb1 {[%emt 0:01:00]} f4 {[%emt 0:00:00]} 11. b4 {[%emt 0:00:30]} Qe8 {[%emt 0:01:00]} 12. c5 {[%emt 0:00:30]} d5 {[%emt 0:00:00]} 13. a4 {[%emt 0:00:00]} c6 {[%emt 0:01:00]} 14. b5 {[%emt 0:00:00]} Nbd7 {[%emt 0:00:00]} 15. Na2 {[%emt 0:01:30]} Rf7 {[%emt 0:00:00]} 16. Rc1 {[%emt 0:00:00]} Nf8 {[%emt 0:00:00]} 17. Qb3 {[%emt 0:01:00]} Ng6 {[%emt 0:02:00]} 18. bxc6 {[%emt 0:00:30]} bxc6 {[%emt 0:00:30]} 19. Qc2 {[%emt 0:00:30]} g4 {[%emt 0:00:30]} 20. Ne1 {[%emt 0:00:30]} h5 {[%emt 0:00:30]} 21. d4 {[%emt 0:00:00]} e4 {[%emt 0:00:30]} 22. Bxf4 {[%emt 0:00:00]} Nxf4 {[%emt 0:00:00]} 23. gxf4 {[%emt 0:01:30]} Bh6 {[%emt 0:00:00]} 24. e3 Ba6 {[%emt 0:01:30]} 25. Nc3 {[%emt 0:01:00]} Bxf1 {[%emt 0:00:30]} 26. Bxf1 {[%emt 0:00:30]} h4 {[%emt 0:00:30]} 27. a5 {[%emt 0:00:00]} Rg7 {[%emt 0:00:30]} 28. Bg2 {[%emt 0:01:00]} Qg6 {[%emt 0:00:30]} 29. Ne2 {[%emt 0:00:30]} Nh5 {[%emt 0:00:30]} 30. Qb3 {[%emt 0:00:30]} Kh7 {[%emt 0:00:30]} 31. Nc3 {[%emt 0:00:30]} Re7 {[%emt 0:00:30]} 32. Nxd5 {[%emt 0:00:30]} Qf7 {[%emt 0:00:00]} 33. Bxe4+ Rxe4 {[%emt 0:01:00]} 34. Nf6+ {[%emt 0:01:00]} Qxf6 {[%emt 0:00:00]} 35. Qb7+ {[%emt 0:00:30]} Re7 {[%emt 0:01:00]} 36. Qxa8 {[%emt 0:00:30]} Nxf4 {[%emt 0:00:30]} 37. exf4 {[%emt 0:00:00]} Bxf4 {[%emt 0:00:30]} 38. Rd1 {[%emt 0:00:00]} Bxh2+ {[%emt 0:00:30]} 39. Kf1 {[%emt 0:01:30]} Bg3 {[%emt 0:00:30]} 40. Rd2 {[%emt 0:00:30]} h3 {[%emt 0:00:30]} 41. Re2 {[%emt 0:00:30]} Rxe2 {[%emt 0:00:30]} 42. Kxe2 {[%emt 0:00:30]} h2 {[%emt 0:00:30]} 43. Qb7+ {[%emt 0:00:30]} Kh6 {[%emt 0:00:30]} 0-1

[Event "FIDE World Cup O10-B 2024"]
[Site "Batumi"]
[Date "2024.06.27"]
[Round "5.11"]
[White "Bergmann, Rafael Antonio"]
[Black "Kvaratskhelia, Giorgi"]
[Result "1-0"]
[ECO "C78"]
[WhiteElo "1743"]
[BlackElo "1548"]
[Annotator "NA RC"]
[PlyCount "177"]
[EventDate "2024.06.23"]
[EventType "swiss"]
[EventCountry "GEO"]
[SourceTitle "playchess.com"]
[Source "ChessBase"]
[SourceQuality "1"]
[TimeControl "5400+30"]

1. e4 {[%emt 0:00:02]} e5 {[%emt 0:00:04]} 2. Nf3 {[%emt 0:00:06]} Nc6 {[%emt 0:00:14]} 3. Bb5 {[%emt 0:00:10]} a6 {[%emt 0:00:06]} 4. Ba4 {[%emt 0:00:06]} Nf6 {[%emt 0:00:07]} 5. d3 {[%emt 0:00:04]} b5 {[%emt 0:00:05]} 6. Bb3 {[%emt 0:00:11]} Bc5 {[%emt 0:00:34]} 7. O-O {[%emt 0:00:10]} O-O {[%emt 0:00:07]} 8. a4 {[%emt 0:02:21]} Bb7 {[%emt 0:00:45]} 9. Nc3 {[%emt 0:00:51]} b4 {[%emt 0:00:29]} 10. Ne2 {[%emt 0:00:48]} d5 {[%emt 0:04:33]} 11. exd5 {[%emt 0:00:13]} Nxd5 {[%emt 0:00:06]} 12. Ng3 {[%emt 0:01:30]} Nf4 {[%emt 0:00:42]} 13. Ne4 {[%emt 0:01:14]} Bb6 {[%emt 0:00:21]} 14. Nxe5 {[%emt 0:02:48]} Nh3+ {[%emt 0:02:08]} 15. gxh3 {[%emt 0:00:16]} Nxe5 {[%emt 0:00:06]} 16. Qh5 {[%emt 0:03:09]} Bxe4 {[%emt 0:16:32]} 17. Qxe5 {[%emt 0:01:24]} Bb7 {[%emt 0:00:29]} 18. Qf4 {[%emt 0:03:35]} Qd7 {[%emt 0:00:42]} 19. Qg4 {[%emt 0:01:13]} Qc6 {[%emt 0:00:13]} 20. Qe4 {[%emt 0:00:58]} Qxe4 {[%emt 0:00:12]} 21. dxe4 {[%emt 0:00:05]} Bxe4 {[%emt 0:00:06]} 22. Bg5 {[%emt 0:01:52]} h6 {[%emt 0:03:17]} 23. Be7 {[%emt 0:01:36]} Rfe8 {[%emt 0:00:09]} 24. Bxb4 {[%emt 0:01:23]} Re5 {[%emt 0:00:41]} 25. Bd2 {[%emt 0:00:12]} Rd8 {[%emt 0:00:29]} 26. Bf4 {[%emt 0:00:49]} Rh5 {[%emt 0:01:44]} 27. Rad1 {[%emt 0:01:19]} Rxd1 {[%emt 0:00:49]} 28. Rxd1 {[%emt 0:00:08]} Rxh3 {[%emt 0:00:35]} 29. Bg3 {[%emt 0:01:14]} Rh5 {[%emt 0:01:56]} 30. Rd8+ {[%emt 0:01:01]} Kh7 {[%emt 0:00:07]} 31. Bxf7 {[%emt 0:00:31]} Rc5 {[%emt 0:00:24]} 32. c3 {[%emt 0:00:53]} Bc2 {[%emt 0:00:35]} 33. Be8 {[%emt 0:01:13]} Rc4 {[%emt 0:00:31]} 34. Be5 {[%emt 0:10:07]} Bf5 {[%emt 0:06:17]} 35. Bd7 {[%emt 0:05:21]} Rg4+ {[%emt 0:01:13]} 36. Bg3 {[%emt 0:00:13]} Bxd7 {[%emt 0:00:29]} 37. Rxd7 {[%emt 0:00:21]} Rxa4 {[%emt 0:00:16]} 38. Bxc7 {[%emt 0:00:22]} Bxc7 {[%emt 0:00:27]} 39. Rxc7 {[%emt 0:00:06]} Ra1+ {[%emt 0:00:16]} 40. Kg2 {[%emt 0:00:05]} Rb1 {[%emt 0:00:07]} 41. Rb7 {[%emt 0:00:09]} a5 {[%emt 0:00:06]} 42. Rb5 {[%emt 0:01:00]} a4 {[%emt 0:00:14]} 43. Rb4 {[%emt 0:00:21]} Kg6 {[%emt 0:00:32]} 44. Kf3 {[%emt 0:03:43]} Kh5 {[%emt 0:00:40]} 45. h4 {[%emt 0:00:22]} g5 {[%emt 0:00:32]} 46. hxg5 {[%emt 0:00:15]} hxg5 {[%emt 0:00:05]} 47. Ke2 {[%emt 0:01:41]} Kg6 {[%emt 0:00:09]} 48. Ke3 {[%emt 0:02:01]} Kh5 {[%emt 0:00:54]} 49. Rxa4 {[%emt 0:06:42]} Rxb2 {[%emt 0:00:22]} 50. Kf3 {[%emt 0:00:14]} Rb3 {[%emt 0:00:14]} 51. Rc4 {[%emt 0:00:06]} Ra3 {[%emt 0:00:13]} 52. Kg2 {[%emt 0:00:09]} Ra2 {[%emt 0:00:09]} 53. Rc8 {[%emt 0:00:19]} Rc2 {[%emt 0:00:07]} 54. c4 {[%emt 0:00:31]} Kg6 {[%emt 0:00:08]} 55. c5 {[%emt 0:00:06]} Kf7 {[%emt 0:00:12]} 56. Rc7+ {[%emt 0:02:01]} Ke6 {[%emt 0:00:04]} 57. Kg3 {[%emt 0:00:30]} Kf6 {[%emt 0:00:16]} 58. c6 {[%emt 0:00:16]} Ke6 {[%emt 0:00:04]} 59. f3 {[%emt 0:00:06]} Rc3 {[%emt 0:00:11]} 60. Rc8 {[%emt 0:01:07]} Ke7 {[%emt 0:00:25]} 61. Rc7+ {[%emt 0:00:33]} Kd6 {[%emt 0:00:21]} 62. Rc8 {[%emt 0:00:11]} Rc4 {[%emt 0:00:55]} 63. Rh8 {[%emt 0:00:49]} Kc7 {[%emt 0:00:19]} 64. Rh6 {[%emt 0:00:08]} Kb6 {[%emt 0:00:10]} 65. Rf6 {[%emt 0:00:47]} Rd4 {[%emt 0:00:55]} 66. Rg6 {[%emt 0:00:57]} Rc4 {[%emt 0:04:22]} 67. Rxg5 {[%emt 0:00:05]} Kxc6 {[%emt 0:00:12]} 68. Re5 {[%emt 0:00:06]} Kd6 {[%emt 0:00:06]} 69. f4 {[%emt 0:00:17]} Rc1 {[%emt 0:00:27]} 70. Kg4 {[%emt 0:00:09]} Rg1+ {[%emt 0:00:08]} 71. Kf5 {[%emt 0:00:23]} Rg8 {[%emt 0:00:21]} 72. Re6+ {[%emt 0:00:35]} Kd7 {[%emt 0:00:05]} 73. Ke5 {[%emt 0:00:44]} Rf8 {[%emt 0:00:15]} 74. f5 {[%emt 0:00:04]} Rf7 {[%emt 0:00:09]} 75. f6 {[%emt 0:00:39]} Kd8 {[%emt 0:00:10]} 76. Kf5 {[%emt 0:01:42]} Kd7 {[%emt 0:00:06]} 77. Re4 {[%emt 0:00:16]} Rh7 {[%emt 0:00:20]} 78. Kg6 {[%emt 0:00:05]} Rh1 {[%emt 0:00:07]} 79. Kg7 {[%emt 0:00:24]} Rg1+ {[%emt 0:00:07]} 80. Kf8 {[%emt 0:00:09]} Rf1 {[%emt 0:00:06]} 81. f7 {[%emt 0:00:09]} Kd8 {[%emt 0:00:09]} 82. Rd4+ {[%emt 0:00:11]} Kc7 {[%emt 0:00:08]} 83. Ke7 {[%emt 0:00:11]} Re1+ {[%emt 0:00:06]} 84. Kf6 {[%emt 0:00:15]} Rf1+ {[%emt 0:00:04]} 85. Ke6 {[%emt 0:00:12]} Re1+ {[%emt 0:00:08]} 86. Kf5 {[%emt 0:00:06]} Re8 {[%emt 0:00:29]} 87. fxe8=Q {[%emt 0:00:12]} Kb7 {[%emt 0:00:01]} 88. Qb5+ {[%emt 0:00:18]} Ka8 {[%emt 0:00:05]} 89. Ra4# {[%emt 0:00:09]} 1-0

[Event "FIDE World Cup O10-B 2024"]
[Site "Batumi"]
[Date "2024.06.27"]
[Round "5.12"]
[White "Kiringoda, Thehas Rithmitha"]
[Black "Popov, Aleksandr And"]
[Result "1-0"]
[ECO "D02"]
[WhiteElo "1641"]
[BlackElo "1661"]
[Annotator "NA RC"]
[PlyCount "135"]
[EventDate "2024.06.23"]
[EventType "swiss"]
[EventCountry "GEO"]
[SourceTitle "playchess.com"]
[Source "ChessBase"]
[SourceQuality "1"]
[TimeControl "5400+30"]

1. d4 {[%emt 0:00:08]} Nf6 {[%emt 0:00:05]} 2. Bf4 {[%emt 0:00:11]} c5 {[%emt 0:00:19]} 3. c3 {[%emt 0:00:12]} Qb6 {[%emt 0:00:18]} 4. Qc2 {[%emt 0:00:45]} Nc6 {[%emt 0:03:40]} 5. e3 {[%emt 0:00:10]} d5 {[%emt 0:05:54]} 6. Nf3 {[%emt 0:00:14]} Bg4 {[%emt 0:05:38]} 7. Nbd2 {[%emt 0:02:29]} e6 {[%emt 0:01:52]} 8. Be2 {[%emt 0:01:51]} Bf5 {[%emt 0:00:43]} 9. Qc1 {[%emt 0:00:13]} Be7 {[%emt 0:02:15]} 10. O-O {[%emt 0:01:39]} O-O {[%emt 0:01:52]} 11. Ne5 {[%emt 0:01:54]} Nxe5 {[%emt 0:07:53]} 12. Bxe5 {[%emt 0:02:52]} Nd7 {[%emt 0:03:49]} 13. Bg3 {[%emt 0:00:09]} Rac8 {[%emt 0:01:12]} 14. Nf3 {[%emt 0:02:53]} Bd6 {[%emt 0:03:42]} 15. Qd2 {[%emt 0:01:57]} Bxg3 {[%emt 0:01:52]} 16. hxg3 {[%emt 0:00:10]} h6 {[%emt 0:03:12]} 17. Rfd1 {[%emt 0:05:14]} Nf6 {[%emt 0:07:10]} 18. Ne5 {[%emt 0:01:13]} Rfd8 {[%emt 0:01:10]} 19. Bf3 {[%emt 0:02:32]} Ne4 {[%emt 0:04:50]} 20. Bxe4 {[%emt 0:00:07]} Bxe4 {[%emt 0:00:21]} 21. Qe2 {[%emt 0:02:34]} f6 {[%emt 0:03:29]} 22. Nd3 {[%emt 0:00:45]} Bxd3 {[%emt 0:00:46]} 23. Rxd3 {[%emt 0:00:09]} Re8 {[%emt 0:05:14]} 24. dxc5 {[%emt 0:02:13]} Rxc5 {[%emt 0:01:37]} 25. Rad1 {[%emt 0:00:08]} f5 {[%emt 0:17:52]} 26. Rd4 {[%emt 0:01:06]} Qb5 {[%emt 0:05:03]} 27. Qh5 {[%emt 0:01:39]} Rf8 {[%emt 0:03:42]} 28. Rb4 {[%emt 0:01:20]} Qc6 {[%emt 0:01:12]} 29. g4 {[%emt 0:00:44]} fxg4 {[%emt 0:02:39]} 30. Rxg4 {[%emt 0:00:12]} Qe8 {[%emt 0:02:00]} 31. Qxh6 {[%emt 0:00:23]} Qf7 {[%emt 0:00:11]} 32. Qh4 {[%emt 0:00:06]} Rb5 {[%emt 0:01:00]} 33. Rf4 {[%emt 0:00:07]} Qe8 {[%emt 0:01:04]} 34. Rxf8+ {[%emt 0:00:11]} Qxf8 {[%emt 0:00:06]} 35. Rd2 {[%emt 0:00:05]} Qf6 {[%emt 0:00:37]} 36. Qh5 {[%emt 0:00:22]} Qf7 {[%emt 0:00:16]} 37. Qe2 {[%emt 0:00:32]} Rc5 {[%emt 0:00:28]} 38. e4 {[%emt 0:00:08]} dxe4 {[%emt 0:00:47]} 39. Rd8+ {[%emt 0:00:41]} Kh7 {[%emt 0:00:10]} 40. Qxe4+ {[%emt 0:00:06]} Rf5 {[%emt 0:00:35]} 41. Qd3 {[%emt 0:01:01]} Qg6 {[%emt 0:01:47]} 42. Rd7 {[%emt 0:00:20]} Rf7 {[%emt 0:01:48]} 43. Qxg6+ {[%emt 0:00:12]} Kxg6 {[%emt 0:00:05]} 44. Rxf7 {[%emt 0:00:06]} Kxf7 {[%emt 0:00:06]} 45. Kf1 {[%emt 0:00:04]} Kf6 {[%emt 0:00:21]} 46. Ke2 {[%emt 0:00:07]} Ke5 {[%emt 0:00:16]} 47. Ke3 {[%emt 0:00:06]} Kf5 {[%emt 0:00:40]} 48. b3 {[%emt 0:00:16]} Ke5 {[%emt 0:00:31]} 49. f4+ {[%emt 0:00:11]} Kf5 {[%emt 0:00:05]} 50. Kf3 {[%emt 0:00:06]} g5 {[%emt 0:00:21]} 51. fxg5 {[%emt 0:00:25]} Kxg5 {[%emt 0:00:08]} 52. Ke4 {[%emt 0:00:04]} Kf6 {[%emt 0:00:34]} 53. a4 {[%emt 0:00:10]} Kg5 {[%emt 0:00:14]} 54. Ke5 {[%emt 0:00:07]} Kg4 {[%emt 0:00:06]} 55. Kxe6 {[%emt 0:00:06]} Kg3 {[%emt 0:00:06]} 56. c4 {[%emt 0:00:19]} Kxg2 {[%emt 0:00:05]} 57. b4 {[%emt 0:00:08]} a5 {[%emt 0:00:49]} 58. bxa5 {[%emt 0:00:16]} Kf3 {[%emt 0:00:04]} 59. c5 {[%emt 0:00:09]} Ke4 {[%emt 0:00:04]} 60. a6 {[%emt 0:00:07]} Kd4 {[%emt 0:00:18]} 61. axb7 {[%emt 0:00:06]} Kxc5 {[%emt 0:00:04]} 62. b8=Q {[%emt 0:00:11]} Kd4 {[%emt 0:00:03]} 63. Qb4+ {[%emt 0:00:14]} Kd3 {[%emt 0:00:02]} 64. Kd5 {[%emt 0:00:15]} Kc2 {[%emt 0:00:05]} 65. Kd4 {[%emt 0:00:05]} Kd1 {[%emt 0:00:07]} 66. Kd3 {[%emt 0:00:09]} Kc1 {[%emt 0:00:05]} 67. a5 {[%emt 0:00:05]} Kd1 {[%emt 0:00:04]} 68. Qb1# {[%emt 0:00:05]} 1-0